Workbook

Sheet Innledning
A1: Egenvurdering av arkivkvalitet i offentlige organ
A4: Arkivverket har laget denne excel-filen som et verktøy for offentlige organer i arbeidet med arkiv og dokumentasjonsforvaltning. Det er ment å fungere som en egenvurdering av arkivholdet, til bruk internt i organet. Resultatet skal ikke rapporteres til Arkivverket, og Arkivverket får ikke tilgang til resultatene med mindre organet selv velger å sende det til oss. Verktøyet kan med fordel brukes over de fleste nivåer i organisasjonen, som del av kartleggingsprosjekter eller som rapporteringsverktøy i linjen. Det er i stor grad tilpasset digitale arkiver, og vil derfor ikke være like aktuelle for rene papirarkiver. Dette verktøyet gir ikke en utfyllende liste over alle faktorer som må være på plass for at arkivholdet i et organ skal kunne regnes som godt, men løfter frem sentrale faktorer for kvalitet i arkivholdet. Resultatet av egenvurderingen viser om det er nødvendig med tiltak for å heve kvaliteten, og eventuelt på hvilke områder. Egenvurderingen kan også brukes som utgangspunkt for å be om mer spisset veiledning fra Arkivverket.
A16: Hvordan bruke verktøyet
A17: Filen er delt inn i seks faneblader. Etter innledningen i første faneblad kommer fire faneblad hvor organet skal gjøre en egenvurdering i fire hovedkategorier: organisatoriske forutsetninger, dokumentfangst, tilgjengelighet og forvaltning. Dere skal vurdere hver kvalitetsfaktor og velge det alternativet i kolonnen «Nivå» som best beskriver den gjeldende situasjonen i organet: ikke på plass, noe på plass, mye på plass, alt på plass eller ikke aktuelt. Svaralternativet «ikke aktuelt» brukes hvis en kvalitetsfaktor ikke er relevant for deres organ. Da gir ikke denne faktoren utslag på rapporten i siste faneblad. Klikk på cellen for å få opp nedtrekksmeny med alternativene. Se tabellen under for en illustrasjon av skalaen. Kolonnen «Kommentar» inneholder Arkivverkets utdyping, definisjon, henvisning til lovverk eller lenke til relevante veiledere. Kolonnen «Egne merknader» gir plass til organets egne notater. Pass på å skrolle nedover på hvert faneblad for å være sikker på dere vurderer alle faktorene. Det siste fanebladet gir en automatisk oppsummering og vurdering av arkivkvalitet, både overordnet og for hver hovedkategori. Estimert tidsbruk for å fylle ut de fire fanebladene er ca. 1-2 timer.
A33: Skala for egenvurdering
C34: Under 24 % - Ikke på plass | D34: Dette har vi ikke noen skriftlig oversikt over
C35: 25-49 % - Noe på plass | D35: Enkelte fagområder/avdelinger har tatt en slik gjennomgang
C36: 50-74 % - Mye på plass | D36: Vi har en oversikt som dekker det meste, men den er ikke oppdatert
C37: Over 75 % - Alt på plass | D37: Vi har hatt en full gjennomgang og dokumentert dokumentasjonspliktene i arkivplanen
C38: Ikke aktuelt | D38: Ikke relevant for organet/virksomheten

Sheet Organisatoriske forutsetninger
A1: ORGANISATORISKE FORUTSETNINGER
A3: Alle offentlige virksomheter er pliktige til å ha arkiv, og til å sørge for at arkivet er en kvalitetssikret informasjonskilde både for samtiden og ettertiden. Arkivet skal dokumentere organets strategier, funksjoner, beslutninger, prosedyrer, handlinger og aktiviteter, uavhengig av dokumentasjonens format eller egenskaper. Disse dokumentasjonspliktene sikres gjennom gode rutiner og internkontroll. Et godt fungerende arkiv avhenger av ledelsesforankring og tydelige fullmakter, tverrfaglig samarbeid, arbeid med prosesser, opplæring og bevisstgjøring.
A5: Organisering av arkivet
A6: Faktorer for arkivkvalitet | B6: Nivå | C6: Kommentar | E6: Egne merknader
A7: Ansvar for arkivet er forankret i toppledelsen | B7: Over 75 % - Alt på plass | C7: Arkivansvaret skal være forstått, erkjent og fulgt opp, og fullmakter og delegasjoner skal være dokumentert i arkivplanen | D7: =IF(B7=Innledning!C$34,1,IF(B7=Innledning!C$35,2,IF(B7=Innledning!C$36,3,IF(B7=Innledning!C$37,4,"")))) -> 4
A8: Organisatorisk ansvar er plassert | B8: Over 75 % - Alt på plass | C8: Organisering og ansvar skal være godt dokumentert, se "Veileder for dokumentasjon av arkivansvar", på Arkivverkets hjemmesider | D8: =IF(B8=Innledning!C$34,1,IF(B8=Innledning!C$35,2,IF(B8=Innledning!C$36,3,IF(B8=Innledning!C$37,4,"")))) -> 4
A9: Fullmakter er delegert for utøvelse av ansvar, også til eksterne hvis aktuelt | B9: Over 75 % - Alt på plass | C9: Delegering av arkivoppgaver kan eksempelvis skje fra ledelse og nedover i et organ, eller fra organet og ut til eksterne aktører | D9: =IF(B9=Innledning!C$34,1,IF(B9=Innledning!C$35,2,IF(B9=Innledning!C$36,3,IF(B9=Innledning!C$37,4,"")))) -> 4
A10: Arkivoppgaver satt ut til eksterne er tydelig beskrevet i tjenesteavtaler | B10: Ikke aktuelt | C10: Ansvaret kan ikke tjenesteutsettes. Tjenesteavtaler med private aktører bør ha krav om at regelverket for offentlig arkiv skal følges | D10: =IF(B10=Innledning!C$34,1,IF(B10=Innledning!C$35,2,IF(B10=Innledning!C$36,3,IF(B10=Innledning!C$37,4,"")))) -> 
A11: Tilstrekkelige ressurser er dedikert til arkiv | B11: 50-74 % - Mye på plass | C11: Tilstrekkelig betyr at det er nok ressurser til å gjennomføre både periodiske og rutinemessige oppgaver. Ressurser kan eksempelvis være ansatte i arkivtjenesten, bevilgninger og/eller teknologiske løsninger | D11: =IF(B11=Innledning!C$34,1,IF(B11=Innledning!C$35,2,IF(B11=Innledning!C$36,3,IF(B11=Innledning!C$37,4,"")))) -> 3
D12: =AVERAGE(D7:D11) -> 3.75
A13: Samarbeid
A14: Faktorer for arkivkvalitet | B14: Nivå | C14: Kommentar | E14: Egne merknader
A15: Ledelsen samarbeider med arkivansvarlig | B15: Over 75 % - Alt på plass | C15: Det overordnede ansvaret for arkivarbeidet i et offentlig organ ligger hos den øverste ledelsen. Derfor er samarbeid mellom ledelse og arkivansvarlig viktig | D15: =IF(B15=Innledning!C$34,1,IF(B15=Innledning!C$35,2,IF(B15=Innledning!C$36,3,IF(B15=Innledning!C$37,4,"")))) -> 4
A16: Det er etablert prosedyrer for involvering av arkivansvarlig ved innkjøp og utvikling av system | B16: Over 75 % - Alt på plass | C16: Arkivansvarlig bør involveres så tidlig som mulig i prosessen for å sikre at arkivbehov ivaretas, helst i designfasen | D16: =IF(B16=Innledning!C$34,1,IF(B16=Innledning!C$35,2,IF(B16=Innledning!C$36,3,IF(B16=Innledning!C$37,4,"")))) -> 4
A17: Arkivtjenesten og fagenhetene samarbeider | B17: 50-74 % - Mye på plass | C17: Samarbeid mellom arkivtjeneste og fagenheter er viktig for å sikre arkivverdig dokumentasjon, da det ofte er fagenhetene som eier systemene som danner dokumentasjonen | D17: =IF(B17=Innledning!C$34,1,IF(B17=Innledning!C$35,2,IF(B17=Innledning!C$36,3,IF(B17=Innledning!C$37,4,"")))) -> 3
A18: Arkivtjenester i organet er satt ut til eksterne | B18: Ikke aktuelt | C18: Avtaler som omhandler delegering av arkivoppgaver til eksterne aktører, skal legges ved arkivplanen. | D18: =IF(B18=Innledning!C$34,1,IF(B18=Innledning!C$35,2,IF(B18=Innledning!C$36,3,IF(B18=Innledning!C$37,4,"")))) -> 
A19: Det er etablert et samarbeid med eksternt depot (Arkivverket, et IKA, byarkiv, fylkesarkiv eller privat aktør) | B19: Over 75 % - Alt på plass | C19: Dersom det ikke er etablert et samarbeid med eksternt depot, er organet selv depot og må ha lokaler som er godkjent for dette i henhold til Riksarkivarens forskrift kap. 2 | D19: =IF(B19=Innledning!C$34,1,IF(B19=Innledning!C$35,2,IF(B19=Innledning!C$36,3,IF(B19=Innledning!C$37,4,"")))) -> 4
D20: =AVERAGE(D15:D19) -> 3.75
A21: Dokumentasjonskrav og -behov
A22: Faktorer for arkivkvalitet | B22: Nivå | C22: Kommentar | E22: Egne merknader
A23: Kartlegging av organets funksjoner og prosesser er gjennomført for alle fagområder | B23: 50-74 % - Mye på plass | C23: Se vår veileder "Metode for identifisering og sikring av dokumentasjon" på Arkivverkets hjemmesider | D23: =IF(B23=Innledning!C34,1,IF(B23=Innledning!C35,2,IF(B23=Innledning!C36,3,IF(B23=Innledning!C37,4,"")))) -> 3
A24: Dokumentasjonspliktene er kartlagt og dokumentert av organet i de ulike arkivene/systemene | B24: Under 24 % - Ikke på plass | C24: Dokumentasjonspliketene er gitt i forvaltningsloverket og ulike særlover | D24: =IF(B24=Innledning!C34,1,IF(B24=Innledning!C35,2,IF(B24=Innledning!C36,3,IF(B24=Innledning!C37,4,"")))) -> 1
A25: Organet har verktøy, metoder, rutiner og prosedyrer for fangst av dokumentasjon | B25: 50-74 % - Mye på plass | C25: Det er viktig at dette er på plass for alle elektroniske systemer | D25: =IF(B25=Innledning!C34,1,IF(B25=Innledning!C35,2,IF(B25=Innledning!C36,3,IF(B25=Innledning!C37,4,"")))) -> 3
D26: =AVERAGE(D23:D25) -> 2.333333333
A27: Kompetanse og opplæring
A28: Faktorer for arkivkvalitet | B28: Nivå | C28: Kommentar | E28: Egne merknader
A29: Ansatte i organet har fått tilstrekkelig opplæring i hva som skal arkiveres, og hvilke ulike systemer det skal arkiveres og/eller journalføres i | B29: 50-74 % - Mye på plass | C29: Det må være en bevissthet rundt behovet for dokumentasjon i et arkivfaglig perspektiv, og det forutsetter opplæring | D29: =IF(B29=Innledning!C34,1,IF(B29=Innledning!C35,2,IF(B29=Innledning!C36,3,IF(B29=Innledning!C37,4,"")))) -> 3
A30: Ansatte har kompetanse til å arkivere fra ulike typer medium | B30: 50-74 % - Mye på plass | C30: Det er viktig at det gjennomføres opplæring for å sette ansatte i stand til å arkivere fra ulike typer medium | D30: =IF(B30=Innledning!C34,1,IF(B30=Innledning!C35,2,IF(B30=Innledning!C36,3,IF(B30=Innledning!C37,4,"")))) -> 3
D31: =AVERAGE(D29:D30) -> 3
A32: Arkivplan og internkontroll
A33: Faktorer for arkivkvalitet | B33: Nivå | C33: Kommentar | E33: Egne merknader
A34: Arkivplanen er ajourført | B34: 50-74 % - Mye på plass | C34: Hva en arkivplan må inneholde er gjort rede for i Riksarkivarens forskrift. På Arkivverkts hjemmeside finner dere også veilederne "Veileder for systemoversikt med beskrivelser" og "Etablere internkontroll for arkiv", som kan benyttes i arbeidet med arkivplan og internkontroll | D34: =IF(B34=Innledning!C34,1,IF(B34=Innledning!C35,2,IF(B34=Innledning!C36,3,IF(B34=Innledning!C37,4,"")))) -> 3
A35: Arkivplanen inneholder en bestandsoversikt over passive og aktive arkiv, både analoge og digitale | B35: Over 75 % - Alt på plass | D35: =IF(B35=Innledning!C34,1,IF(B35=Innledning!C35,2,IF(B35=Innledning!C36,3,IF(B35=Innledning!C37,4,"")))) -> 4
A36: Arkivplanen inneholder et organisasjonskart som beskriver hvordan, og av hvem, arbeidet med arkiv og dokumentasjon gjennomføres | B36: Over 75 % - Alt på plass | D36: =IF(B36=Innledning!C34,1,IF(B36=Innledning!C35,2,IF(B36=Innledning!C36,3,IF(B36=Innledning!C37,4,"")))) -> 4
A37: Arkivplanen viser hvilke instrukser, regler og planer som gjelder for arkivarbeidet | B37: Over 75 % - Alt på plass | D37: =IF(B37=Innledning!C34,1,IF(B37=Innledning!C35,2,IF(B37=Innledning!C36,3,IF(B37=Innledning!C37,4,"")))) -> 4
A38: Fullmakter og delegasjoner er dokumentert i arkivplanen | B38: Over 75 % - Alt på plass | D38: =IF(B38=Innledning!C34,1,IF(B38=Innledning!C35,2,IF(B38=Innledning!C36,3,IF(B38=Innledning!C37,4,"")))) -> 4
D39: =AVERAGE(D34:D38) -> 3.8

Sheet Dokumentfangst
A1: DOKUMENTFANGST
A3: Dokumentfangst innebærer at dokumenter identifiseres, arkiveres, fryses og tilføres metadata. Prosessene skal sørge for at dokumentet bevares uforandret i sin originale form, beskyttet mot all fremtidig endring. Arkiv i seg selv er ikke målet, men et middel for å oppnå ting vi tar som en selvfølge. Vi tar vare på data, dokumenter og beslutninger slik at: vi kan finne igjen, dele og gjenbruke tidligere arbeid, at vi blir effektive og unngår dobbeltarbeid, at vi kan bevise hva som har skjedd (det handler om rettsikkerhet, etterrettelighet og demokrati), og at ettertiden kan bygge på våre erfaringer (det handler om forskning og kulturarv). Forutsetning for gode arkiv er at man kjenner opphavssituasjonen til den arkiverte informasjonen. Det er metadataene (data om data) som binder dokumentene til den konteksten de er skapt i. Metadataene sikrer de elektroniske dokumentenes autentisitet og dermed deres bevisverdi. Uten metadata vil ikke dokumenter ha verdi som arkivdokumenter. Metadata er også viktig for fremfinning, tilgangsstyring og skjerming, i tillegg til å styre bevaring og kassasjon.
A5: Dokumentfangst skjer fortløpende
A6: Faktorer for arkivkvalitet | B6: Nivå | C6: Kommentar | E6: Egne merknader
A7: Fangst og registrering av arkivinformasjon, journalføring, er ajour | B7: Over 75 % - Alt på plass | C7: Dette er en forutsetning for tillitt til at det er autentisk dokumentasjon. Troverdigheten og bevisverdien øker ved rask registrering. Med ajor menes her fortløpende, og så raskt som praktisk mulig, etter at dokumentasjon er mottatt eller identifisert (Riksarkivarens forskrift § 3-2) | D7: =IF(B7=Innledning!C34,1,IF(B7=Innledning!C35,2,IF(B7=Innledning!C36,3,IF(B7=Innledning!C37,4,"")))) -> 4
A8: Dokumentfangsten er innrett slik at organet har fullgod dokumentasjon på alle aktiviteter og fagområder | B8: 50-74 % - Mye på plass | C8: =IF(B8=Innledning!C34,1,IF(B8=Innledning!C35,2,IF(B8=Innledning!C36,3,IF(B8=Innledning!C37,4,"")))) -> 3
A9: Dokumentasjonen er pålitelig og representerer en fullstendig og nøyaktig gjengivelse av aktivitetene som skal dokumenteres | B9: Over 75 % - Alt på plass | C9: Arkivert informasjon skal ikke kunne endres av uautorisert bruker. Alle tillatte endringer skal være lovlige og kunne etterprøves. For utdypende informasjon se ISO 15489 og ISO 30300 | D9: =IF(B9=Innledning!C34,1,IF(B9=Innledning!C35,2,IF(B9=Innledning!C36,3,IF(B9=Innledning!C37,4,"")))) -> 4
A10: Dokumentasjonen organet legger inn i de elektroniske systemene er komplette og uendret, og er etter journalføring sikret mot uatoriserte endringer | B10: Over 75 % - Alt på plass | D10: =IF(B10=Innledning!C34,1,IF(B10=Innledning!C35,2,IF(B10=Innledning!C36,3,IF(B10=Innledning!C37,4,"")))) -> 4
A11: Dokumentasjonen til organet er anvendelig og kan gjenfinnes, hentes, vises og tolkes | B11: Over 75 % - Alt på plass | D11: =IF(B11=Innledning!C34,1,IF(B11=Innledning!C35,2,IF(B11=Innledning!C36,3,IF(B11=Innledning!C37,4,"")))) -> 4
A12: Opphavssituasjonen til organets dokumentasjon er autentisk; det vil si at det er kjent når dokumentasjonen er skapt, hvor, av hvem og til hvilket formål | B12: Over 75 % - Alt på plass | D12: =IF(B12=Innledning!C34,1,IF(B12=Innledning!C35,2,IF(B12=Innledning!C36,3,IF(B12=Innledning!C37,4,"")))) -> 4
A13: Systemer som inneholder bevaringsverdig informasjon logger fangst, og alle etterfølgende hendelser og handlinger er utført på dokumentasjonen | B13: Over 75 % - Alt på plass | C13: Det skal legges ved en oversikt over disse systemene i arkivplanen (Riksarkivarens forskrift kapittel 3) | D13: =IF(B13=Innledning!C34,1,IF(B13=Innledning!C35,2,IF(B13=Innledning!C36,3,IF(B13=Innledning!C37,4,"")))) -> 4
A14: Overføring fra produksjonssystem til arkivsystem skjer uten vesentlig tap av informasjon og metadata | B14: Over 75 % - Alt på plass | C14: Det er viktig at det er definert hva som skal bevares og at dette blir overført. APIer/integrasjoner er satt opp korrekt, slik at man ikke har metadatatap | D14: =IF(B14=Innledning!C34,1,IF(B14=Innledning!C35,2,IF(B14=Innledning!C36,3,IF(B14=Innledning!C37,4,"")))) -> 4
A15: Det benyttes forhåndsdefinerte metadata (Noark) og virksomehtesspesifikke metadata (fagsystem) for strukturering og gjenfinning av dokumentasjon | B15: Over 75 % - Alt på plass | C15: Forhåndsdefinerte metadata bør baseres på en standard for beste praksis | D15: =IF(B15=Innledning!C34,1,IF(B15=Innledning!C35,2,IF(B15=Innledning!C36,3,IF(B15=Innledning!C37,4,"")))) -> 4
A16: Tilgang over tid er sikret ved at dokumenter konverteres til anvendbare og bestandige format | B16: Over 75 % - Alt på plass | C16: Se Riksarkivarens forskrift kapittel 5, særskilt § 5-17 | D16: =IF(B16=Innledning!C34,1,IF(B16=Innledning!C35,2,IF(B16=Innledning!C36,3,IF(B16=Innledning!C37,4,"")))) -> 4
A17: Metadata som er nødvendig for å opprettholde tilliten til dokumentasjonen blir kvalitetssikret | B17: Over 75 % - Alt på plass | C17: Det er loggmetadata som i størst grad er med på å opprettholde dokumentasjonens autentisitet. Metadata er data om data, altså informasjon som beskriver annen informasjon. Dette er en elektronisk fil som kan være representert som et tekstdokument, et bilde eller en film. Typiske metadata er emneord, tittel og tidspunkt for opprettelse og endring av dokumentet | D17: =IF(B17=Innledning!C34,1,IF(B17=Innledning!C35,2,IF(B17=Innledning!C36,3,IF(B17=Innledning!C37,4,"")))) -> 4
D18: =AVERAGE(D7:D17) -> 4
A19: Rutiner for å arkivere informasjon er på plass
A20: Faktorer for arkivkvalitet | B20: Nivå | C20: Kommentar | E20: Egne merknader
A21: Papirdokumenter fysisk eller digitalt etter skanning | B21: Over 75 % - Alt på plass | C21: Rutiner er på plass og det tekniske er på plass for arkivering av informasjon fra ulike medium og ulike formater | D21: =IF(B21=Innledning!C34,1,IF(B21=Innledning!C35,2,IF(B21=Innledning!C36,3,IF(B21=Innledning!C37,4,"")))) -> 4
A22: Digitale dokumenter | B22: Over 75 % - Alt på plass | D22: =IF(B22=Innledning!C34,1,IF(B22=Innledning!C35,2,IF(B22=Innledning!C36,3,IF(B22=Innledning!C37,4,"")))) -> 4
A23: Fysiske modeller | B23: Ikke aktuelt | D23: =IF(B23=Innledning!C34,1,IF(B23=Innledning!C35,2,IF(B23=Innledning!C36,3,IF(B23=Innledning!C37,4,"")))) -> 
A24: Møtereferater | B24: Over 75 % - Alt på plass | D24: =IF(B24=Innledning!C34,1,IF(B24=Innledning!C35,2,IF(B24=Innledning!C36,3,IF(B24=Innledning!C37,4,"")))) -> 4
A25: SMS | B25: Over 75 % - Alt på plass | D25: =IF(B25=Innledning!C34,1,IF(B25=Innledning!C35,2,IF(B25=Innledning!C36,3,IF(B25=Innledning!C37,4,"")))) -> 4
A26: e-post | B26: Over 75 % - Alt på plass | D26: =IF(B26=Innledning!C34,1,IF(B26=Innledning!C35,2,IF(B26=Innledning!C36,3,IF(B26=Innledning!C37,4,"")))) -> 4
A27: Lydfiler | B27: Over 75 % - Alt på plass | D27: =IF(B27=Innledning!C34,1,IF(B27=Innledning!C35,2,IF(B27=Innledning!C36,3,IF(B27=Innledning!C37,4,"")))) -> 4
A28: Sosiale medier (facebook, twitter etc.) | B28: Under 24 % - Ikke på plass | D28: =IF(B28=Innledning!C34,1,IF(B28=Innledning!C35,2,IF(B28=Innledning!C36,3,IF(B28=Innledning!C37,4,"")))) -> 1
A29: Interne dokumenter/notater/diskusjoner | B29: Over 75 % - Alt på plass | D29: =IF(B29=Innledning!C34,1,IF(B29=Innledning!C35,2,IF(B29=Innledning!C36,3,IF(B29=Innledning!C37,4,"")))) -> 4
A30: Samhandlingsløsninger (Sharepoint etc.) | B30: Under 24 % - Ikke på plass | D30: =IF(B30=Innledning!C34,1,IF(B30=Innledning!C35,2,IF(B30=Innledning!C36,3,IF(B30=Innledning!C37,4,"")))) -> 1
A31: Fellesområder (filserver) | B31: Under 24 % - Ikke på plass | D31: =IF(B31=Innledning!C34,1,IF(B31=Innledning!C35,2,IF(B31=Innledning!C36,3,IF(B31=Innledning!C37,4,"")))) -> 1
A32: Prosjektportaler/prosjektverktøy | B32: Under 24 % - Ikke på plass | D32: =IF(B32=Innledning!C34,1,IF(B32=Innledning!C35,2,IF(B32=Innledning!C36,3,IF(B32=Innledning!C37,4,"")))) -> 1
A33: Web-baserte skjemaer | B33: Over 75 % - Alt på plass | D33: =IF(B33=Innledning!C34,1,IF(B33=Innledning!C35,2,IF(B33=Innledning!C36,3,IF(B33=Innledning!C37,4,"")))) -> 4
A34: Strukturert informasjon/dokumentasjon som der og da utgjør et beslutningsgrunnlag | B34: Over 75 % - Alt på plass | D34: =IF(B34=Innledning!C34,1,IF(B34=Innledning!C35,2,IF(B34=Innledning!C36,3,IF(B34=Innledning!C37,4,"")))) -> 4
D35: =AVERAGE(D21:D34) -> 3.076923077

Sheet Tilgjengelighet
A1: TILGJENGELIGHET
A3: Formålet med å ta vare på og å langtidsbevare dokumentasjon er å gjøre den tilgjengelig i samtid og ettertid. Innholdet i arkivet skal være tilgjengelig for all berettiget bruk. Tilgjengeligjøring skal gagne både organet selv, forsknigsaktører, annet publikum og intereserte parter.
A5: Dokumentasjonen er tilgjengelig/anvendelig
A6: Faktorer for arkivkvalitet | B6: Nivå | C6: Kommentar | E6: Egne merknader
A7: Systemer for tilgjengeliggjøring ivaretar også behov for nødvendig skjerming og gradering av informasjon | B7: Over 75 % - Alt på plass | C7: Informasjon som av hensyn til sikkerhet eller personvernhensyn skal skjermes mot innsyn som regulert i lovverk, forskrifter og GDPR | D7: =IF(B7=Innledning!C34,1,IF(B7=Innledning!C35,2,IF(B7=Innledning!C36,3,IF(B7=Innledning!C37,4,"")))) -> 4
A8: Arkivmaterialet er tilrettelagt for gjenbruk | B8: Over 75 % - Alt på plass | C8: Dette gjelder for både digtalt arkiv og papirarkiv | D8: =IF(B8=Innledning!C34,1,IF(B8=Innledning!C35,2,IF(B8=Innledning!C36,3,IF(B8=Innledning!C37,4,"")))) -> 4
A9: Alle arkiv er tilgjengelig for innsyn i henhold til arkivlov med forskrifter, offentlighetsloven, forvaltningsloven, personopplysningsloven og relevante særlover | B9: Over 75 % - Alt på plass | C9: Ulike lover regulerer innsynsrettigheter som organet må kunne ivareta | D9: =IF(B9=Innledning!C34,1,IF(B9=Innledning!C35,2,IF(B9=Innledning!C36,3,IF(B9=Innledning!C37,4,"")))) -> 4
A10: Arkivmateriale skal være vernet mot mulige skader og uatorisert tilgang | B10: Over 75 % - Alt på plass | C10: Gjelder både arkiv i fysiske rom og på digitale platformer. Se Riksarkivarens forskrift kapittel 2 for mer informasjon | D10: =IF(B10=Innledning!C34,1,IF(B10=Innledning!C35,2,IF(B10=Innledning!C36,3,IF(B10=Innledning!C37,4,"")))) -> 4
D11: =AVERAGE(D7:D10) -> 4
A12: Tilgjengelighet til dagligarkiv hos organet
A13: Faktorer for arkivkvalitet | B13: Nivå | C13: Kommentar | E13: Egne merknader
A14: Arkivet er tilgjengelig for ansatte i organet i deres oppgaveløsning | B14: Over 75 % - Alt på plass | C14: Gjelder oppslag i de ulike systemene | D14: =IF(B14=Innledning!C$34,1,IF(B14=Innledning!C$35,2,IF(B14=Innledning!C$36,3,IF(B14=Innledning!C$37,4,"")))) -> 4
A15: Arkivet er tilgjengelig for eksterne via en innsynsportal eller lignende | B15: Over 75 % - Alt på plass | C15: Gjelder alle arkiv som innholder journalføringspliktig informasjon | D15: =IF(B15=Innledning!C$34,1,IF(B15=Innledning!C$35,2,IF(B15=Innledning!C$36,3,IF(B15=Innledning!C$37,4,"")))) -> 4
D16: =AVERAGE(D14:D15) -> 4
A17: Organets bortsatte arkiv er tilgjengelige
A18: Faktorer for arkivkvalitet | B18: Nivå | C18: Kommentar | E18: Egne merknader
A19: Bortsatte arkiver er tilgjengelig for ansatte i organet i deres oppgaveløsning | B19: Over 75 % - Alt på plass | C19: Tilgang til periodiserte og bortsatte arkiv, elektroniske og på papir | D19: =IF(B19=Innledning!C34,1,IF(B19=Innledning!C35,2,IF(B19=Innledning!C36,3,IF(B19=Innledning!C37,4,"")))) -> 4
A20: Bortsatte arkiver er tilgjengelig for eksterne via en innsynsportal eller lignende | B20: Over 75 % - Alt på plass | C20: Gjelder alle arkiv som innholder journalføringspliktig informasjon | D20: =IF(B20=Innledning!C$34,1,IF(B20=Innledning!C$35,2,IF(B20=Innledning!C$36,3,IF(B20=Innledning!C$37,4,"")))) -> 4
D21: =AVERAGE(D19:D20) -> 4
A22: Tilgjengelighet til deponert/avlevert arkiv
A23: Faktorer for arkivkvalitet | B23: Nivå | C23: Kommentar | E23: Egne merknader
A24: Deponert eller avlevert arkivmateriale er listeført på en slik måte at det er mulig å gjenfinne | B24: Over 75 % - Alt på plass | C24: Det er viktig at arkivplanen beskriver dette uttømmende, både rutiner for listeføring og selve listene over gjeldende materiale. | D24: =IF(B24=Innledning!C34,1,IF(B24=Innledning!C35,2,IF(B24=Innledning!C36,3,IF(B24=Innledning!C37,4,"")))) -> 4
A25: Organet er tilknyttet et depot | B25: Over 75 % - Alt på plass | C25: Offentlige organ skal ha ordninger for arkivdepot for arkivene sine | D25: =IF(B25=Innledning!C$34,1,IF(B25=Innledning!C$35,2,IF(B25=Innledning!C$36,3,IF(B25=Innledning!C$37,4,"")))) -> 4
A26: Organet er ikke tilknyttet et depot, men er depot selv for egene arkiv | B26: Ikke aktuelt | C26: Dersom det ikke er etablert et samarbeid med eksternt depot, er organet selv depot og må ha lokaler som er godkjent for dette i henhold til Riksarkivarens forskrift kap. 2 | D26: =IF(B26=Innledning!C$34,1,IF(B26=Innledning!C$35,2,IF(B26=Innledning!C$36,3,IF(B26=Innledning!C$37,4,"")))) -> 
D27: =AVERAGE(D24:D26) -> 4
A28: Tilgjengeliggjøring av analogt arkiv
A29: Faktorer for arkivkvalitet | B29: Nivå | C29: Kommentar | E29: Egne merknader
A30: Organet har en plan for at arkivmateriale på papir i fremtiden blir tilrettelagt for digital tilgjengeligjøring | B30: Ikke aktuelt | C30: Se vår Veileder for mediekonvertering av papirarkiver på Arkivverkets nettsider | D30: =IF(B30=Innledning!C$34,1,IF(B30=Innledning!C$35,2,IF(B30=Innledning!C$36,3,IF(B30=Innledning!C$37,4,"")))) -> 

Sheet Forvaltning
A1: FORVALTNING AV ARKIV
A3: Forvaltningen av arkivmateriale skal legge til rette for at den er tilgjengelig for virksomheten selv, og for samfunnet for øvrig. For å sikre tilgang til arkivmateriale over tid, må man ta stilling til om informasjonen skal være tilgjengelig lenger enn forventet levetid på systemet den opprettes og lagres i.
A5: Sikring av tilgang over tid
A6: Faktorer for arkivkvalitet | B6: Nivå | C6: Kommentar | E6: Egne merknader
A7: Det er planer for når det skal gjøres uttrekk fra originalsystemet før systemet tas ut av bruk, og stenges for drift og danning av dokumentasjon | B7: Over 75 % - Alt på plass | C7: Uttrekk tas fra orginalsystem og deponeres / avleveres. En kopi av databasen kan med fordel tilgjengeliggjøres for oppslag (lesing) i nytt system. Migrering mellom eldre løsning og ny løsning er ikke anbefalt og sjeldent ønskelig. | D7: =IF(B7=Innledning!C34,1,IF(B7=Innledning!C35,2,IF(B7=Innledning!C36,3,IF(B7=Innledning!C37,4,"")))) -> 4
A8: Konvertering gjennomføres slik at nødvendig funksjonalitet og dokumentasjonens integritet, samt autentisitet opprettholdes | B8: Over 75 % - Alt på plass | C8: Det er viktig at organet selv har kompetanse og rutiner for å vurdere når konvertering bør skje. | D8: =IF(B8=Innledning!C34,1,IF(B8=Innledning!C35,2,IF(B8=Innledning!C36,3,IF(B8=Innledning!C37,4,"")))) -> 4
D9: =AVERAGE(D7:D8) -> 4
A10: Periodisering
A11: Faktorer for arkivkvalitet | B11: Nivå | C11: Kommentar | E11: Egne merknader
A12: Det finnes en plan for periodisering av alle typer arkiv og alle hendelser som kan utløse behov for periodisering | B12: Over 75 % - Alt på plass | C12: Dette kan gjelde for systembytte, omorganiseringer og andre endringer som påvirker arkivholdet | D12: =IF(B12=Innledning!C34,1,IF(B12=Innledning!C35,2,IF(B12=Innledning!C36,3,IF(B12=Innledning!C37,4,"")))) -> 4
A13: Avsluttede arkiv (systemer og arkivserier) er tilgjengelig for all berettiget bruk | B13: Over 75 % - Alt på plass | C13: Organet må ha hjelpemiddeler til å finne fram i elektronisk journaler og arkiv | D13: =IF(B13=Innledning!C34,1,IF(B13=Innledning!C35,2,IF(B13=Innledning!C36,3,IF(B13=Innledning!C37,4,"")))) -> 4
A14: Det finnes en plan for vedlikehold av avsluttede arkivperioder frem til deponering og/eller avlevering | B14: 50-74 % - Mye på plass | C14: Kommuner deponerer, statlige organer deponerer og / eller avleverer | D14: =IF(B14=Innledning!C34,1,IF(B14=Innledning!C35,2,IF(B14=Innledning!C36,3,IF(B14=Innledning!C37,4,"")))) -> 3
D15: =AVERAGE(D12:D14) -> 3.666666667
A16: Kassasjon
A17: Faktorer for arkivkvalitet | B17: Nivå | C17: Kommentar | E17: Egne merknader
A18: Det finnes en bevarings- og kassasjonsplan som omfatter alt arkivmateriale i statlige organer | B18: Ikke aktuelt | C18: Bevaring-kassasjonsplan skal være godkjent av Riksarkivaren før den tas i bruk | D18: =IF(B18=Innledning!C34,1,IF(B18=Innledning!C35,2,IF(B18=Innledning!C36,3,IF(B18=Innledning!C37,4,"")))) -> 
A19: Bevarings- og kassasjonsplanen har oppdaterte kassasjonsfrister i kommunale organer | B19: Over 75 % - Alt på plass | C19: I henhold til forvaltningsloverket og særlover | D19: =IF(B19=Innledning!C34,1,IF(B19=Innledning!C35,2,IF(B19=Innledning!C36,3,IF(B19=Innledning!C37,4,"")))) -> 4
A20: Bevarings- og kassasjonsreglene er tatt i bruk i de digitale systemene | B20: Ikke aktuelt | C20: Gjelder alle forvaltningsorganer | D20: =IF(B20=Innledning!C34,1,IF(B20=Innledning!C35,2,IF(B20=Innledning!C36,3,IF(B20=Innledning!C37,4,"")))) -> 
A21: Arkivbegrensninger og kassasjon er planlagt og gjennomført før bortsetting/uttrekk | B21: Over 75 % - Alt på plass | C21: Dette gjelder per arkivserie, system, arkivdel med mer | D21: =IF(B21=Innledning!C34,1,IF(B21=Innledning!C35,2,IF(B21=Innledning!C36,3,IF(B21=Innledning!C37,4,"")))) -> 4
A22: Det finnes lister over kassert materiale | B22: 25-49 % - Noe på plass | C22: Gjelder både hjemlet og uhjemlet kassasjon. Uhjemlet kassasjon kan være dokumentasjon tapt ved flom, brann, innbrudd, hacking eller lignende | D22: =IF(B22=Innledning!C34,1,IF(B22=Innledning!C35,2,IF(B22=Innledning!C36,3,IF(B22=Innledning!C37,4,"")))) -> 2
D23: =AVERAGE(D18:D22) -> 3.333333333
A24: Uttrekk
A25: Faktorer for arkivkvalitet | B25: Nivå | C25: Kommentar | E25: Egne merknader
A26: Det finnes en plan for digitale uttrekk fra passive og aktive systemer | B26: Over 75 % - Alt på plass | C26: Uttrekk av digital informasjon til systemuavhengige format er en metode for å redusere risiko for at informasjonen går tapt eller blir utilgjengelig | D26: =IF(B26=Innledning!C34,1,IF(B26=Innledning!C35,2,IF(B26=Innledning!C36,3,IF(B26=Innledning!C37,4,"")))) -> 4
A27: Det er gjort uttrekk fra digitale systemer som er faset ut av bruk, fra avsluttede perioder, eller arkivdeler | B27: 50-74 % - Mye på plass | C27: Når uttrekk fra system er tatt, må uttrekkene godkjennes av mottakkerdepotet før systemet det er gjort utrekk fra kan fases ut | D27: =IF(B27=Innledning!C34,1,IF(B27=Innledning!C35,2,IF(B27=Innledning!C36,3,IF(B27=Innledning!C37,4,"")))) -> 3
D28: =AVERAGE(D26:D27) -> 3.5

Sheet Rapport
A1: ARKIVKVALITET
B3: Kritiske mangler: | F3: Store mangler: | J3: Mangler: | M3: Det meste ivaretatt:
B4: Alvorlig lav | F4: Svak | J4: Moderat | M4: God
A6: OVERORDNET VURDERING
A8: Vurdering av arkivalitetsnivå | H8: =IF(A15<1.49,Rapport!B4,IF(A15<2.49,Rapport!F4,IF(A15<3.49,Rapport!J4,Rapport!M4))) -> God | J8: =A15 -> 3.62 | K8: i gjennomsnitt av 4 oppnåelige poeng.
A11: =J19 -> 3.33 | B11: =A17 -> ORGANISATORISKE FORUTSETNINGER
A12: =J31 -> 3.54 | B12: =A29 -> DOKUMENTFANGST
A13: =J43 -> 4.00 | B13: =A41 -> TILGJENGELIGHET
A14: =J55 -> 3.63 | B14: =A53 -> FORVALTNING AV ARKIV
A15: =AVERAGE(A11:A14) -> 3.62
A17: ='Organisatoriske forutsetninger'!A1 -> ORGANISATORISKE FORUTSETNINGER
A19: Vurdering av arkivalitetsnivå | H19: =IF(H28<1.49,Rapport!B4,IF(H28<2.49,Rapport!F4,IF(H28<3.49,Rapport!J4,Rapport!M4))) -> Moderat | J19: =H28 -> 3.33 | K19: i gjennomsnitt av 4 oppnåelige poeng.
B22: Faktor | H22: Nivå | K22: A
B23: ='Organisatoriske forutsetninger'!A5 -> Organisering av arkivet | H23: ='Organisatoriske forutsetninger'!D12 -> 3.8
B24: ='Organisatoriske forutsetninger'!A13 -> Samarbeid | H24: ='Organisatoriske forutsetninger'!D20 -> 3.8
B25: ='Organisatoriske forutsetninger'!A21 -> Dokumentasjonskrav og -behov | H25: ='Organisatoriske forutsetninger'!D26 -> 2.3
B26: ='Organisatoriske forutsetninger'!A27 -> Kompetanse og opplæring | H26: ='Organisatoriske forutsetninger'!D31 -> 3.0
B27: ='Organisatoriske forutsetninger'!A32 -> Arkivplan og internkontroll | H27: ='Organisatoriske forutsetninger'!D39 -> 3.8
H28: =AVERAGE('Organisatoriske forutsetninger'!D12,'Organisatoriske forutsetninger'!D20,'Organisatoriske forutsetninger'!D26,'Organisatoriske forutsetninger'!D31,'Organisatoriske forutsetninger'!D39) -> 3.3
A29: =Dokumentfangst!A1 -> DOKUMENTFANGST
A31: Vurdering av arkivalitetsnivå | H31: =IF(H40<1.49,Rapport!B4,IF(H40<2.49,Rapport!F4,IF(H40<3.49,Rapport!J4,Rapport!M4))) -> God | J31: =H40 -> 3.54 | K31: i gjennomsnitt av 4 oppnåelige poeng.
B34: Faktor | H34: Nivå
B35: =Dokumentfangst!A5 -> Dokumentfangst skjer fortløpende | H35: =Dokumentfangst!D18 -> 4.0
B36: =Dokumentfangst!A19 -> Rutiner for å arkivere informasjon er på plass | H36: =Dokumentfangst!D35 -> 3.1
H40: =AVERAGE(H35:H39) -> 3.5385
A41: =Tilgjengelighet!A1 -> TILGJENGELIGHET
A43: Vurdering av arkivalitetsnivå | H43: =IF(H52<1.49,Rapport!B4,IF(H52<2.49,Rapport!F4,IF(H52<3.49,Rapport!J4,Rapport!M4))) -> God | J43: =H52 -> 4.00 | K43: i gjennomsnitt av 4 oppnåelige poeng.
B46: Faktor | H46: Nivå
B47: =Tilgjengelighet!A5 -> Dokumentasjonen er tilgjengelig/anvendelig | H47: =Tilgjengelighet!D11 -> 4.0
B48: =Tilgjengelighet!A12 -> Tilgjengelighet til dagligarkiv hos organet | H48: =Tilgjengelighet!D16 -> 4.0
B49: =Tilgjengelighet!A17 -> Organets bortsatte arkiv er tilgjengelige | H49: =Tilgjengelighet!D21 -> 4.0
B50: =Tilgjengelighet!A22 -> Tilgjengelighet til deponert/avlevert arkiv | H50: =Tilgjengelighet!D27 -> 4.0
B51: =Tilgjengelighet!A28 -> Tilgjengeliggjøring av analogt arkiv | H51: =Tilgjengelighet!D30 -> 
H52: =AVERAGE(H47:H51) -> 4.0
A53: =Forvaltning!A1 -> FORVALTNING AV ARKIV
A55: Vurdering av arkivalitetsnivå | H55: =IF(H64<1.49,Rapport!B4,IF(H64<2.49,Rapport!F4,IF(H64<3.49,Rapport!J4,Rapport!M4))) -> God | J55: =H64 -> 3.63 | K55: i gjennomsnitt av 4 oppnåelige poeng.
B58: Faktor | H58: Nivå | K58: A
B59: =Forvaltning!A5 -> Sikring av tilgang over tid | H59: =Forvaltning!D9 -> 4.0
B60: =Forvaltning!A10 -> Periodisering | H60: =Forvaltning!D15 -> 3.7
B61: =Forvaltning!A16 -> Kassasjon | H61: =Forvaltning!D23 -> 3.3
B62: =Forvaltning!A24 -> Uttrekk | H62: =Forvaltning!D28 -> 3.5
H64: =AVERAGE(H59:H63) -> 3.6250
